Cogmind - Beta 13 @@@ ROGUE MODE // 2024.04.07 @ 10:53:30 Player: SYPIAC Result: Destroyed by Y-72 Warden with Railgun Performance ------------- Evolutions (6) 3000 Regions Visited (12) 2400 Robots Destroyed (78) 390 Value Destroyed (2339) 2339 Prototype IDs (26) 520 Alien Tech Used (0) 0 Bonus (800) 800 TOTAL SCORE: 9449 Bonus ------- Entered DSFs 500 Aligned with FarCom 300 Cogmind --------- Core Integrity 0/1150 Matter 213/300 Energy 11/100 System Corruption 43% Temperature Cool (2) Movement Flying (60) Location -4/Factory Parts ------- > --- POWER (2) -------- (None) > --- PROPULSION (3) --- Advanced Medium Treads Field Propulsion Array > --- UTILITY (10) ----- Advanced Heat Sink Medium Storage Unit Improved Target Analyzer Improved Transmission Jammer > --- WEAPON (4) ------- (None) > --- INVENTORY (10) --- Field Propulsion Array Improved Coolant Injector Peak State ------------ > --- POWER ------------ Angular Momentum Engine > --- PROPULSION ------- Improved Medium Treads Compact Wheel Compact Wheel > --- UTILITY ---------- Coolant Injector Large Storage Unit Machine Analyzer Advanced Targeting Computer Improved Particle Charger Layered Medium Armor Plating Thermal Shield Improved Hacking Suite Improved System Shield > --- WEAPON ----------- AWS/Thermal Quantum Rifle Quantum Rifle > --- INVENTORY -------- Angular Momentum Engine Improved Medium Treads Wheel Advanced Heat Sink Layered Medium Armor Plating Layered Medium Armor Plating Focal Shield Hacking Suite Improved Heavy Laser Improved EM Pulse Cannon Coil Gun Proton Missile Launcher Power Sword [Rating: 85] Favorites ----------- Power Ion Engine Engine Ion Engine Power Core Nuclear Core Reactor Reinforced Quantum Reactor Propulsion Compact Wheel Treads Light Treads Leg Aluminum Leg Wheel Compact Wheel Flight Unit Field Propulsion Array Utility Small Storage Unit Device Seismic Detector Storage Small Storage Unit Processor Advanced Targeting Computer Hackware Improved Hacking Suite Protection Hardened Medium Armor Plating Weapon Medium Laser Energy Gun Medium Laser Energy Cannon Improved EM Pulse Cannon Ballistic Gun Light Assault Rifle Launcher Micro-nuke Launcher Special Weapon Mining Laser Impact Weapon Power Maul Slashing Weapon Power Sword Build | -11 -10 -10 -10 -9 -8 -7 -7 -6 -5 -5 -5 -4 ------- Run | Yrd Mat Min Exi Min Mat Fac DSF Fac Fac Was Fac Fac Slots Evolved 12 | . . . . . 4 2 . 2 2 . . 2 Power 1 | . . . . . . . . . . . . 1 Propulsion 1 | . . . . . 1 . . . . . . . Utility 8 | . . . . . 1 2 . 2 2 . . 1 Weapon 2 | . . . . . 2 . . . . . . . Parts Attached 113 | 10 7 1 2 1 9 5 5 18 4 9 15 27 Power 11 | 1 . . 1 1 1 . . 2 . 1 1 3 Engine 5 | 1 . . 1 . . . . 2 . . . 1 Core 4 | . . . . 1 1 . . . . . 1 1 Reactor 2 | . . . . . . . . . . 1 . 1 Propulsion 23 | 3 . 1 . . 1 . 1 1 . 2 2 12 Treads 9 | 1 . . . . . . 1 1 . . 1 5 Leg 2 | 1 . . . . . . . . . . . 1 Wheel 8 | 1 . 1 . . 1 . . . . 2 1 2 Hover . | . . . . . . . . . . . . . Flight 4 | . . . . . . . . . . . . 4 Utility 41 | 3 1 . . . 4 3 2 8 3 2 8 7 Device 19 | 2 . . . . 1 . . 2 3 1 6 4 Storage 6 | 1 1 . . . . . . 1 . . . 3 Processor 3 | . . . . . 1 1 . . . . 1 . Hackware 5 | . . . . . . 1 . 3 . . 1 . Protection 8 | . . . . . 2 1 2 2 . 1 . . Artifact . | . . . . . . . . . . . . . Weapon 38 | 3 6 . 1 . 3 2 2 7 1 4 4 5 Energy Gun 14 | 1 3 . 1 . 2 1 . 2 1 1 . 2 Energy Cannon 5 | . . . . . . . 1 1 . 1 1 1 Ballistic Gun 9 | 1 3 . . . 1 . 1 1 . . . 2 Ballistic Cannon . | . . . . . . . . . . . . . Launcher 4 | . . . . . . . . . . 1 3 . Special Weapon 2 | 1 . . . . . 1 . . . . . . Impact Weapon 1 | . . . . . . . . 1 . . . . Slashing Weapon 3 | . . . . . . . . 2 . 1 . . Piercing Weapon . | . . . . . . . . . . . . . Special Melee Weapon . | . . . . . . . . . . . . . Unidentified Prototypes 3 | . . . . . . . . . . 1 1 1 Corrupted Parts 4 | . . . . . . . . . . 1 . 3 System Corruption 38 | . . . . . . . . . . 8 . 30 Parts Lost 42 | . . 2 . . . . 1 . . 5 15 19 Power 8 | . . 1 . . . . . . . 1 1 5 Propulsion 11 | . . 1 . . . . 1 . . . 4 5 Utility 10 | . . . . . . . . . . 3 4 3 Weapon 13 | . . . . . . . . . . 1 6 6 Highest Loss Streak 14 | . . 2 . . . . 1 . . 4 14 11 To Critical Strikes . | . . . . . . . . . . . . . Average Slot Usage (%) 83 | . 100 85 93 85 89 92 91 92 94 86 82 31 Engine 4 | . 14 . 14 11 . . . 5 5 1 . 2 Core 2 | . . . . 2 9 7 7 . . . . . Treads 7 | . 14 14 14 14 9 7 6 6 5 . 4 . Wheel 12 | . 14 13 14 14 18 15 15 13 11 16 9 3 Device 7 | . 14 14 14 14 . . . 6 17 12 16 2 Storage 7 | . 14 14 14 14 9 7 7 6 5 1 . 2 Processor 9 | . . . . . 8 13 15 13 11 11 12 10 Hackware 6 | . . . . . . 7 7 12 11 11 15 3 Protection 3 | . . . . . 9 8 7 6 5 4 . . Energy Gun 11 | . 15 14 14 14 23 20 11 8 11 9 4 2 Energy Cannon 1 | . . . . . . . 4 4 . 3 4 . Ballistic Gun 3 | . 10 14 7 . 2 2 5 2 . . . . Slashing Weapon 1 | . . . . . . . . 2 4 3 4 . Naked Turns . | . . . . . . . . . . . . . Heaviest Build 71 | 14 32 30 32 34 44 47 54 66 67 71 43 37 Greatest Support 42 | 16 20 16 16 16 32 32 32 32 32 42 32 32 Greatest Overweight (x) 3 | 1 1 1 1 2 1 1 1 2 2 2 3 3 Average Overweight (x) . | . . 1 1 1 1 1 1 1 1 . . . Largest Inventory Capacity 15 | 8 15 15 15 15 15 15 15 15 15 15 5 10 Average Capacity 8 | 7 14 15 15 15 15 15 15 15 15 8 5 7 Most Carried 15 | 8 14 14 15 15 14 14 14 15 14 13 4 6 Average Carried 6 | 6 9 13 13 14 11 12 13 14 13 6 3 4 Final Capacity 15 | 8 15 15 15 15 15 15 15 15 15 5 5 10 Final Carried 15 | 8 13 14 14 15 13 14 14 15 13 4 4 5 Class Distribution -------------------- 87% | Mutant 5% | Hacker-Gunner 3% | Skirmisher Dominant Class ---------------- Mutant | -10/Materials Mutant | -10/Mines Mutant | -10/Exiles Mutant | -9/Mines Skirmisher | -8/Materials Skirmisher | -7/Factory Skirmisher | -7/DSF Hacker-Gunner | -6/Factory Hacker-Gunner | -5/Factory Hacker-Tank | -5/Waste Hacker-Skirmisher | -5/Factory Mutant | -4/Factory Resources | -11 -10 -10 -10 -9 -8 -7 -7 -6 -5 -5 -5 -4 ----------- Run | Yrd Mat Min Exi Min Mat Fac DSF Fac Fac Was Fac Fac Matter Collected 1444 | 301 250 11 . 38 98 . 175 190 40 . 61 280 Remotely . | . . . . . . . . . . . . . Salvage Created 2842 | 162 351 75 . 94 236 . 530 527 130 290 165 282 Parts 167 | 19 26 3 . 5 17 . 27 32 6 4 18 10 Haulers Intercepted 2 | . . . . . 1 . . 1 . . . . Recyclers Shooed 3 | . 1 . . . . . . . . . . 2 Parts Field Recycled 3 | . . . . . . . . . . . . 3 Retrieved Matter 22 | . . . . . . . . . . . . 22 Parts Self-Destructed . | . . . . . . . . . . . . . Prevented . | . . . . . . . . . . . . . Kills | -11 -10 -10 -10 -9 -8 -7 -7 -6 -5 -5 -5 -4 ------- Run | Yrd Mat Min Exi Min Mat Fac DSF Fac Fac Was Fac Fac Combat Hostiles Destroyed 55 | . 7 2 . 2 9 . 10 10 4 1 6 4 Melee 2 | . . . . . . . . . . . 1 1 Guns 42 | . 7 2 . 2 9 . 8 8 4 1 1 . Cannons 4 | . . . . . . . 2 2 . . . . AOE 6 | . . . . . . . . . . . 4 2 Classes Destroyed 14 | 2 4 . . . 2 . 3 1 . 1 1 . Worker 4 | 2 1 . . . 1 . . . . . . . Builder 1 | . . . . . . . . . . . 1 . Tunneler 6 | 6 . . . . . . . . . . . . Hauler 2 | . . . . . 1 . . 1 . . . . Recycler 2 | . 1 . . . . . . . . . . 1 Watcher 8 | . 3 . . . 2 . . 2 1 . . . Swarmer 29 | . 3 . . . 8 . . 7 4 . 4 3 Grunt 13 | . 4 2 . 2 . . 3 1 . . . 1 Sentry 3 | . . . . . 1 . 1 1 . . . . Specialist 4 | . . . . . . . 4 . . . . . Hunter 1 | . . . . . . . 1 . . . . . Programmer 3 | . . . . . . . . 1 . . 2 . Heavy 1 | . . . . . . . 1 . . . . . Compactor 1 | . . . . . . . . . . 1 . . Best Kill Streak 5 | 2 5 2 . 2 4 . 4 5 5 1 5 2 Combat Bots Only 5 | . 5 2 . 2 4 . 4 4 4 1 5 2 Max Kills in Single Turn 4 | 1 1 1 . 1 1 . 2 2 2 1 4 1 Gunslinging . | . . . . . . . . . . . . . Exploded 4 | . . . . . . . . . . . 4 1 Melee 1 | . . . . . . . . . . . 1 1 Uniques/NPCs Destroyed . | . . . . . . . . . . . . . Combat | -11 -10 -10 -10 -9 -8 -7 -7 -6 -5 -5 -5 -4 -------- Run | Yrd Mat Min Exi Min Mat Fac DSF Fac Fac Was Fac Fac Hostile Shots Fired 471 | . 35 5 . 3 17 . 73 37 3 3 95 200 Missed 156 | . 5 . . 2 4 . 25 16 2 . 26 76 Damage Taken 5947 | . 315 81 . 15 120 . 650 267 15 374 1315 2795 Core 1786 | . 87 28 . 15 7 . 132 36 . 71 245 1165 Absorbed by Shields 10 | . . . . . . . . 10 . . . . Redirected to Shielding 7 | . . . . . 7 . . . . . . . Ignored by Resistances 187 | . . . . . . . . . . 30 157 . Core Remaining (%) 81 | 100 . . . 48 98 . 81 95 . . 68 . Volleys Fired 171 | 42 35 4 . . 11 2 21 15 2 4 14 21 Largest 4 | 2 2 2 . . 2 1 2 2 2 4 2 3 Hottest 292 | 150 130 85 . . 130 100 145 144 188 292 163 134 Shots Fired 415 | 52 66 8 . 8 43 2 83 47 7 54 18 27 Gun 365 | 43 66 8 . 8 43 . 68 37 7 52 7 26 Cannon 30 | . . . . . . . 15 10 . 1 3 1 Launcher 9 | . . . . . . . . . . 1 8 . Special 11 | 9 . . . . . 2 . . . . . . Kinetic 63 | 1 30 4 . . 2 . 20 5 . . . 1 Thermal 313 | 51 36 4 . 8 41 2 48 32 7 52 7 25 Explosive 4 | . . . . . . . . . . . 4 . Electromagnetic 35 | . . . . . . . 15 10 . 2 7 1 Robot Hit Streak 27 | 5 10 4 . 6 14 . 10 13 6 27 6 6 Robot Miss Streak 7 | 2 7 2 . 1 5 . 4 1 . 1 3 2 Penetration Max 1 | . . . . . . . 1 . . . . . Secondary Targets . | . . . . . . . . . . . . . Autonomous 144 | . . . . 8 21 . 41 25 4 45 . . Shots Hit Robots 300 | 18 35 7 . 7 41 . 66 36 6 48 18 18 Core Hits 146 | 8 24 8 . 3 27 . 20 17 5 7 14 13 Critical Kills . | . . . . . . . . . . . . . Critical Parts Destroyed . | . . . . . . . . . . . . . Critical Strikes 3 | 1 1 . . . . . . . . . 1 . Burn 2 | 1 1 . . . . . . . . . . . Sever 1 | . . . . . . . . . . . 1 . Melee Attacks 40 | . . . . . . . . 15 3 6 16 . Impact 2 | . . . . . . . . 2 . . . . Slashing 38 | . . . . . . . . 13 3 6 16 . Piercing . | . . . . . . . . . . . . . Sneak Attacks . | . . . . . . . . . . . . . Combat Hostiles . | . . . . . . . . . . . . . Follow-up Attacks . | . . . . . . . . . . . . . Damage Inflicted 8032 | 238 380 81 . 209 789 . 1445 1204 208 1619 1319 540 Guns 6109 | 214 378 81 . 209 789 . 1202 1005 208 1563 134 326 Cannons 513 | . . . . . . . 243 199 . 2 38 31 Explosions 1091 | . . . . . . . . . . 54 910 127 Melee 237 | . . . . . . . . . . . 237 . Ramming 58 | . 2 . . . . . . . . . . 56 Kinetic 459 | . 105 27 . . 37 . 228 46 . . . 16 Thermal 5852 | 238 273 54 . 209 752 . 974 959 208 1614 134 437 Explosive 657 | . . . . . . . . . . . 657 . Electromagnetic 769 | . . . . . . . 243 199 . 5 291 31 Impact . | . . . . . . . . . . . . . Slashing 237 | . . . . . . . . . . . 237 . Piercing . | . . . . . . . . . . . . . Highest Corruption 43 | . 1 1 1 1 . . . . . 27 29 43 Average Corruption 11 | . 1 1 1 1 . . . . . 16 27 21 Corruption Purged . | . . . . . . . . . . . . . Corruption Blocked . | . . . . . . . . . . . . . Effects 49 | . . . 3 1 . . . . . 12 24 9 Message Errors 9 | . . . 1 . . . . . . 1 5 2 Matter Fused 12 | . . . 1 . . . . . . 4 7 . Heat Flow Errors 4 | . . . 1 . . . . . . . 2 1 Energy Discharges 6 | . . . . . . . . . . 2 3 1 Parts Rejected 1 | . . . . . . . . . . . . 1 Parts Fused 1 | . . . . . . . . . . . 1 . Data Loss (minor) 2 | . . . . . . . . . . . 2 . Data Loss (major) 2 | . . . . . . . . . . 1 1 . Misfires 1 | . . . . . . . . . . . 1 . Alerts 1 | . . . . 1 . . . . . . . . Misdirections 8 | . . . . . . . . . . 4 . 4 Weapon Failures 2 | . . . . . . . . . . . 2 . Overload Shots . | . . . . . . . . . . . . . Overflow Damage 265 | 6 . . . . . . . . . 31 122 106 Projectiles 6 | 6 . . . . . . . . . . . . Explosions 259 | . . . . . . . . . . 31 122 106 Melee . | . . . . . . . . . . . . . Knockbacks 2 | . . . . . . . . . . . . 2 Impact 2 | . . . . . . . . . . . . 2 Kinetic . | . . . . . . . . . . . . . Secondary . | . . . . . . . . . . . . . Self-Inflicted Damage 407 | . 1 . . . . . . . . 81 94 231 Shots 7 | . . . . . . . . . . 2 2 3 Rammed 20 | . 1 . . . . . . . . . . 19 Targets Rammed 27 | . 1 . . . . . . . . . . 26 Kicked 7 | . . . . . . . . . . . . 7 Crushed . | . . . . . . . . . . . . . Highest Temperature 287 | 190 287 143 96 . 171 . 30 162 117 198 178 165 Average Temperature 64 | 54 94 73 56 . 62 . 10 49 47 69 73 39 Received Heat Transfer 832 | . 111 42 . 9 9 . 90 33 . . 225 313 Effects 1 | . 1 . . . . . . . . . . . Interference 1 | . 1 . . . . . . . . . . . Siege Activations . | . . . . . . . . . . . . . Robots Corrupted . | . . . . . . . . . . . . . Combat Hostiles . | . . . . . . . . . . . . . Parts Fried 1 | . . . . . . . . 1 . . . . Impact Corruptions . | . . . . . . . . . . . . . Robots Melted 1 | . . . . . . . . . . . . 1 Combat Hostiles 1 | . . . . . . . . . . . . 1 Parts Melted 10 | 2 1 . . 1 . . 1 . 2 . . 3 Heat Transferred 8119 | 753 790 70 . 259 958 . 1363 1012 222 1715 148 829 Parts Sabotaged . | . . . . . . . . . . . . . Parts Stolen . | . . . . . . . . . . . . . Parts Stripped . | . . . . . . . . . . . . . Power Chain Reactions 2 | . . . . . . . . . . 1 . 1 Alert | -11 -10 -10 -10 -9 -8 -7 -7 -6 -5 -5 -5 -4 ------- Run | Yrd Mat Min Exi Min Mat Fac DSF Fac Fac Was Fac Fac Peak Influence 431 | 40 289 142 . 51 316 58 220 352 204 86 431 174 Initial 115 | . 26 112 . . 19 54 . 115 99 71 38 98 Average 25 | . 180 139 . 13 161 46 117 235 119 62 128 83 Maximum Alert Level 2 | . 1 . . . 1 . 1 1 1 . 2 . Low Security (%) 95 | 100 45 100 . 100 80 100 64 46 91 100 76 100 Level 1 4 | . 54 . . . 19 . 35 53 8 . 21 . Level 2 . | . . . . . . . . . . . 1 . Level 3 . | . . . . . . . . . . . . . Level 4 . | . . . . . . . . . . . . . Level 5 . | . . . . . . . . . . . . . High Security . | . . . . . . . . . . . . . Max Security . | . . . . . . . . . . . . . Sterilizations 1 | . . . . . . . 1 . . . . . Squads Dispatched 12 | . . . . . 1 1 2 2 . . 3 3 Investigation 2 | . . . . . . 1 . . . . . 1 Extermination 3 | . . . . . . . . 1 . . 1 1 Reinforcement 5 | . . . . . 1 . 2 . . . 1 1 Assault 1 | . . . . . . . . 1 . . . . Garrison 1 | . . . . . . . . . . . 1 . Intercept . | . . . . . . . . . . . . . Searches Triggered . | . . . . . . . . . . . . . Construction Impeded . | . . . . . . . . . . . . . Haulers Reinforced 1 | . . . . . . . . . . . . 1 Active Scanning Responses . | . . . . . . . . . . . . . Cargo Convoy Interrupts . | . . . . . . . . . . . . . Stealth | -11 -10 -10 -10 -9 -8 -7 -7 -6 -5 -5 -5 -4 --------- Run | Yrd Mat Min Exi Min Mat Fac DSF Fac Fac Was Fac Fac Distress Signals 2 | . . . . . . . . 1 . . 1 . Communications Jammed 9 | . . . . . . . . . . . . 9 Distress Signals 9 | . . . . . . . . . . . . 9 Times Spotted 117 | . 12 2 . 2 12 . 10 14 5 10 20 30 Peak Tracking Total 17 | . 5 2 . 2 4 . 4 5 5 6 7 17 Tactical Retreats 7 | . . . . . . . . 1 . 1 2 3 Traps | -11 -10 -10 -10 -9 -8 -7 -7 -6 -5 -5 -5 -4 ------- Run | Yrd Mat Min Exi Min Mat Fac DSF Fac Fac Was Fac Fac Traps Triggered 5 | . 1 . . . . 1 1 1 1 . . . Indirectly . | . . . . . . . . . . . . . Trap Hack Attempts . | . . . . . . . . . . . . . Triggered . | . . . . . . . . . . . . . Disarmed . | . . . . . . . . . . . . . Reprogrammed . | . . . . . . . . . . . . . Reused . | . . . . . . . . . . . . . Traps Extracted . | . . . . . . . . . . . . . Installed . | . . . . . . . . . . . . . Triggered . | . . . . . . . . . . . . . Machines | -11 -10 -10 -10 -9 -8 -7 -7 -6 -5 -5 -5 -4 ---------- Run | Yrd Mat Min Exi Min Mat Fac DSF Fac Fac Was Fac Fac Machines Disabled 9 | . . . . . 1 . . 2 . . 4 2 Max in Single Turn 3 | . . . . . 1 . . 1 . . 3 2 Garrison Access 1 | . . . . . . . . 1 . . . . Machines Repaired . | . . . . . . . . . . . . . Machines Dismantled . | . . . . . . . . . . . . . Machines Sabotaged . | . . . . . . . . . . . . . Overloaded Fab Kills . | . . . . . . . . . . . . . Hacking | -11 -10 -10 -10 -9 -8 -7 -7 -6 -5 -5 -5 -4 --------- Run | Yrd Mat Min Exi Min Mat Fac DSF Fac Fac Was Fac Fac Machines Accessed 23 | . 2 . 4 . 1 4 . 9 . . 1 2 Terminals 11 | . 2 . . . 1 2 . 5 . . . 1 Fabricators 4 | . . . . . . 1 . 3 . . . . Repair Stations 1 | . . . . . . . . . . . . 1 Recycling Units 2 | . . . . . . 1 . . . . 1 . Scanalyzers . | . . . . . . . . . . . . . Garrison Access 1 | . . . . . . . . 1 . . . . Total Hacks 62 | . 5 . 26 . 3 9 . 14 . . 2 3 Successful 45 | . 4 . 26 . 1 4 . 7 . . 2 1 Failed 17 | . 1 . . . 2 5 . 7 . . . 2 Catastrophic . | . . . . . . . . . . . . . Database Lockouts . | . . . . . . . . . . . . . Manual 13 | . 2 . 1 . 1 4 . 3 . . . 2 Terminals 25 | . 5 . . . 3 5 . 10 . . . 2 Fabricators 5 | . . . . . . 2 . 3 . . . . Repair Stations 1 | . . . . . . . . . . . . 1 Recycling Units 4 | . . . . . . 2 . . . . 2 . Scanalyzers . | . . . . . . . . . . . . . Garrison Access 1 | . . . . . . . . 1 . . . . Terminal Hacks 32 | . 2 . 26 . . 1 . 3 . . . . Record 25 | . . . 25 . . . . . . . . . Part Schematic 1 | . . . . . . . . 1 . . . . Open DSF 2 | . . . . . . 1 . 1 . . . . Locate Traps 1 | . 1 . . . . . . . . . . . Recall Assault 1 | . . . . . . . . 1 . . . . Zone Layout 1 | . 1 . . . . . . . . . . . Derelict Proto ID Bank 1 | . . . 1 . . . . . . . . . Fabricator Hacks 5 | . . . . . . 2 . 3 . . . . Network Status 2 | . . . . . . 1 . 1 . . . . Build 3 | . . . . . . 1 . 2 . . . . Repair Station Hacks 1 | . . . . . . . . . . . . 1 Refit 1 | . . . . . . . . . . . . 1 Recycling Unit Hacks 3 | . . . . . . 1 . . . . 2 . Report Inventory 1 | . . . . . . . . . . . 1 . Retrieve Components 2 | . . . . . . 1 . . . . 1 . Scanalyzer . | . . . . . . . . . . . . . Garrison Access Hacks . | . . . . . . . . . . . . . Unauthorized Hacks 4 | . 2 . . . 1 . . 1 . . . . Terminals 3 | . 2 . . . 1 . . . . . . . Track 1 | . 1 . . . . . . . . . . . Botnet 2 | . 1 . . . 1 . . . . . . . Fabricators . | . . . . . . . . . . . . . Repair Stations . | . . . . . . . . . . . . . Recycling Units . | . . . . . . . . . . . . . Scanalyzers . | . . . . . . . . . . . . . Garrison Access 1 | . . . . . . . . 1 . . . . Reprogram 1 | . . . . . . . . 1 . . . . Data Cores Recovered . | . . . . . . . . . . . . . Used . | . . . . . . . . . . . . . Hacking Detections 13 | . 2 . . . 1 4 . 5 . . . 1 Full Trace Events 2 | . 1 . . . . . . . . . . 1 Feedback Events . | . . . . . . . . . . . . . Feedback Blocked . | . . . . . . . . . . . . . Robot Schematics Acquired . | . . . . . . . . . . . . . Robots Built 1 | . . . . . . . . 1 . . . . Authchips . | . . . . . . . . . . . . . Time 27 | . . . . . . . . 27 . . . . Total Robot Build Rating 1 | . . . . . . . . 1 . . . . Part Schematics Acquired 1 | . . . . . . . . 1 . . . . Parts Built 3 | . . . . . . 1 . 2 . . . . Authchips . | . . . . . . . . . . . . . Time 148 | . . . . . . 84 . 64 . . . . Total Part Build Rating 20 | . . . . . . 4 . 16 . . . . Parts Repaired . | . . . . . . . . . . . . . Time . | . . . . . . . . . . . . . Parts Recycled . | . . . . . . . . . . . . . Recycled Matter . | . . . . . . . . . . . . . Retrieved Matter . | . . . . . . . . . . . . . Retrieved Components 4 | . . . . . . 2 . . . . 2 . Parts Scanalyzed . | . . . . . . . . . . . . . Part Schematics Acquired . | . . . . . . . . . . . . . Parts Damaged . | . . . . . . . . . . . . . Bothacking | -11 -10 -10 -10 -9 -8 -7 -7 -6 -5 -5 -5 -4 ------------ Run | Yrd Mat Min Exi Min Mat Fac DSF Fac Fac Was Fac Fac Used RIF Installer . | . . . . . . . . . . . . . Robots Hacked . | . . . . . . . . . . . . . Non-combat . | . . . . . . . . . . . . . Combat . | . . . . . . . . . . . . . Robot Hacks Applied . | . . . . . . . . . . . . . Relay Couplers Released 4 | . . . . . . . . 4 . . . . Machine Destruction 4 | . . . . . . . . 4 . . . . Fabnet Peak Effective % . | . . . . . . . . . . . . . Robots Rewired . | . . . . . . . . . . . . . Allies Hacked . | . . . . . . . . . . . . . Hacks Repelled . | . . . . . . . . . . . . . Allies | -11 -10 -10 -10 -9 -8 -7 -7 -6 -5 -5 -5 -4 -------- Run | Yrd Mat Min Exi Min Mat Fac DSF Fac Fac Was Fac Fac Total Allies 2 | . . . . . . . . 1 . 1 . . Largest Group 1 | . . . . . . . . 1 . 1 . . Highest-Rated Group 31 | . . . . . . . . 10 . 31 . . Highest-Rated Ally 31 | . . . . . . . . 10 . 31 . . Total Orders 5 | . . . . . . . . 3 . . 2 . FOLLOW 1 | . . . . . . . . 1 . . . . TUNNEL 2 | . . . . . . . . 2 . . . . EXPLORE 2 | . . . . . . . . . . . 2 . Ally Attacks 7 | . . . . . . . . . . 7 . . Total Damage 127 | . . . . . . . . . . 127 . . Kills . | . . . . . . . . . . . . . Allies Corrupted . | . . . . . . . . . . . . . Allies Melted . | . . . . . . . . . . . . . Intel | -11 -10 -10 -10 -9 -8 -7 -7 -6 -5 -5 -5 -4 ------- Run | Yrd Mat Min Exi Min Mat Fac DSF Fac Fac Was Fac Fac Robot Analysis Total . | . . . . . . . . . . . . . Derelict Logs Recovered . | . . . . . . . . . . . . . Drone Launches 5 | . . . . . . . . . . . 5 . Drone Recoveries 3 | . . . . . . . . . . . 3 . Exploration | -11 -10 -10 -10 -9 -8 -7 -7 -6 -5 -5 -5 -4 ------------- Run | Yrd Mat Min Exi Min Mat Fac DSF Fac Fac Was Fac Fac Turns Passed 26903 | 21981 382 179 435 116 478 472 195 1257 142 214 462 590 Spaces Moved 5724 | 2184 221 133 374 96 225 274 80 937 106 120 339 635 Core 416 | 1 . . . . . . . . . . 70 345 Treads 4 | . 4 . . . . . . . . . . . Legs 19 | 19 . . . . . . . . . . . . Wheels 5128 | 2164 217 133 374 96 225 274 80 937 106 120 269 133 Hover . | . . . . . . . . . . . . . Flight 157 | . . . . . . . . . . . . 157 Fastest Speed 34 | 50 100 115 115 115 115 115 115 115 115 93 50 34 Average Speed 102 | 100 114 115 115 117 115 115 115 116 117 106 96 60 Slowest Speed 240 | 190 240 115 115 130 115 115 115 130 130 130 200 200 Overloaded Moves . | . . . . . . . . . . . . . Propulsion Burnouts . | . . . . . . . . . . . . . Robots Hopped 4 | . . . . . . . . . . . . 4 Cave-ins Triggered 1 | . . . . . . . . . . 1 . . Exploration Rate (%) 35 | 86 34 32 62 21 17 7 78 27 4 75 10 8 Regions Visited 12 Branch Regions 3 Pre-discovered Areas 1 | . . . 1 . . . . . . . . . Known Exits Taken 1 | . . . . . . 1 . . . . . . Unknown Exits Taken 8 | 1 1 1 1 1 1 . . 1 . . 1 . Scrap Searched 2 | . . . . 2 . . . . . . . . Spaces Dug 37 | 3 . . . . . . . 15 3 6 10 . Terrain Destroyed 175 | 3 . . . 1 1 . . 17 4 23 97 29 Melee 34 | . . . . . . . . 15 3 6 10 . Projectile 18 | 3 . . . 1 1 . . 2 1 7 2 1 AOE 123 | . . . . . . . . . . 10 85 28 Terrain Rammed . | . . . . . . . . . . . . . Walls Destroyed . | . . . . . . . . . . . . . Machines Disabled . | . . . . . . . . . . . . . Actions | -11 -10 -10 -10 -9 -8 -7 -7 -6 -5 -5 -5 -4 --------- Run | Yrd Mat Min Exi Min Mat Fac DSF Fac Fac Was Fac Fac Total 26372 | 21899 287 152 380 99 423 427 139 1056 116 185 428 781 Wait 20186 | 19652 14 13 . . 168 132 27 40 1 45 35 59 Move 5705 | 2183 220 132 373 95 224 273 79 936 106 119 338 627 Hop 4 | . . . . . . . . . . . . 4 Pick Up 58 | 10 7 2 1 1 4 8 3 14 . 1 3 4 Fast Attach 46 | 7 . . 1 1 3 1 1 4 . 3 7 18 Attach 35 | . . 1 1 . 5 3 1 3 2 4 6 9 Detach 17 | . . . 2 1 2 1 . 1 . . 4 6 Swap 32 | 3 7 . . . 1 1 3 11 2 2 2 . Drop 51 | 2 3 . 2 1 5 6 4 17 . 1 3 7 Fire 171 | 42 35 4 . . 11 2 21 15 2 4 14 21 Melee 40 | . . . . . . . . 15 3 6 16 . Ram 19 | . 1 . . . . . . . . . . 18 Kick 7 | . . . . . . . . . . . . 7 Crush 1 | . . . . . . . . . . . . 1 Escape Stasis . | . . . . . . . . . . . . . Rewire . | . . . . . . . . . . . . . Trap . | . . . . . . . . . . . . . Miscellaneous . | . . . . . . . . . . . . . Route ------- -11/Scrapyard -10/Materials -10/Mines -10/Exiles -9/Mines -8/Materials -7/Factory -7/DSF -6/Factory -5/Factory -5/Waste -5/Factory -4/Factory (discovered 1 exit: [*Arm]) History --------- Turn | Location | Event 10 | -11/Scrapyard | Discovered new exit (range 15) 21982 | -11/Scrapyard | Entered Materials 21983 | -10/Materials | Build established: Mutant 22288 | -10/Materials | Discovered new exit (range 3) 22364 | -10/Materials | Entered Mines 22368 | -10/Mines | Met a Derelict bent on vengeance 22523 | -10/Mines | Received a Rocket Launcher from a helpful Derelict 22539 | -10/Mines | Deemed a non-threat by the Exiles lab entrance 22539 | -10/Mines | Discovered new exit (range 5) 22543 | -10/Mines | Entered Exiles 22573 | -10/Exiles | Met 8R-AWN 22593 | -10/Exiles | Met EX-HEX 22636 | -10/Exiles | Met EX-DEC 22643 | -10/Exiles | Learned location of Zion (-7) 22662 | -10/Exiles | Met EX-BIN 22678 | -10/Exiles | Aligned with FarCom system 22679 | -10/Exiles | Given EX-Vault access code 22705 | -10/Exiles | Opened EX-Vault 22789 | -10/Exiles | Found AWS/Thermal 22815 | -10/Exiles | Warned to stay clear of 0b10 Research branches 22900 | -10/Exiles | Discovered new exit (range 14) 22978 | -10/Exiles | Left Exiles lab with AWS/Thermal 22978 | -10/Exiles | Entered Mines 23043 | -9/Mines | Discovered new exit (range 16) 23059 | -9/Mines | Core integrity fell below 50% 23094 | -9/Mines | Entered Materials 23094 | -8/Materials | Evolved 4 slots: Propulsion x1, Utility x1, Weapon x2 23405 | -8/Materials | Build established: Skirmisher 23558 | -8/Materials | Discovered new exit (range 12) 23572 | -8/Materials | Entered Factory 23572 | -7/Factory | Evolved 2 slots: Utility x2 23900 | -7/Factory | Identified exit to DSF 23997 | -7/Factory | Fabricated Proton Missile Launcher? 24044 | -7/Factory | Entered DSF 24071 | -7/DSF | Additional patrols routed to DSF 24211 | -7/DSF | Sterilization system engaged 24212 | -7/DSF | Discovered new exit (range 15) 24231 | -7/DSF | Ambient heat levels rising (+10) 24239 | -7/DSF | Entered Factory 24239 | -6/Factory | Evolved 2 slots: Utility x2 24616 | -6/Factory | Build established: Hacker-Gunner 25061 | -6/Factory | Fabricated Quantum Rifle? 25428 | -6/Factory | Fabricated T-07 Excavator (x1) 25469 | -6/Factory | Discovered new exit (range 16) 25496 | -6/Factory | Entered another Factory area 25496 | -5/Factory | Evolved 2 slots: Utility x2 25638 | -5/Factory | Sucked down chute 25638 | -5/Factory | Entered Waste 25639 | -5/Waste | Met a frightened Derelict 25649 | -5/Waste | Spotted C-40 Crusher 25651 | -5/Waste | Spotted C-40 Crusher 25653 | -5/Waste | EMP discharged 25657 | -5/Waste | Spotted C-40 Crusher 25662 | -5/Waste | Spotted C-40 Crusher 25665 | -5/Waste | Spotted C-40 Crusher 25683 | -5/Waste | Spotted C-40 Crusher 25694 | -5/Waste | Destroyed C-40 Crusher 25709 | -5/Waste | Crushed by Compactor (1 part destroyed, 1 dropped) 25716 | -5/Waste | Crushed by Compactor (1 part destroyed, 2 dropped) 25747 | -5/Waste | Lost 4 parts (1p2u1w) 25753 | -5/Waste | EMP discharged 25753 | -5/Waste | System corruption reached 10% 25766 | -5/Waste | Crushed by falling debris 25831 | -5/Waste | Discovered new exit (range 11) 25846 | -5/Waste | Crushed by Compactor (1 part destroyed, 1 dropped) 25852 | -5/Waste | Entered Factory 26222 | -5/Factory | Garrison activated, responded to threat 26280 | -5/Factory | Discovered new exit (range 9) 26299 | -5/Factory | Lost 14 parts (1p3n4u6w) 26314 | -5/Factory | Entered another Factory area 26314 | -4/Factory | Evolved 2 slots: Power x1, Utility x1 26543 | -4/Factory | Build established: Mutant 26796 | -4/Factory | Lost 8 parts (2p3n2u1w) 26841 | -4/Factory | Core integrity fell below 50% 26843 | -4/Factory | System corruption reached 10% 26847 | -4/Factory | System corruption reached 30% 26887 | -4/Factory | Core integrity fell below 20% 26893 | -4/Factory | Discovered new exit (range 16) 26904 | -4/Factory | Destroyed by Y-72 Warden with Railgun Last Messages --------------- 26875_ Manufacturing Mainframe disabled. 26876_ Slammed into S-27 Virus. 26876_ S-27 Virus destroyed. [Achievement: Fist Fight] 26877_ Acquired 21 matter. 26878_ Acquired VTOL Module. 26881_ A YMCC/F VQ>5/QLQANNGVPHHZIWK3ZZ 26883_ Prc. Energy Filter destroyed. 26884_ VTOL Module destroyed. 26887_ ALERT: Security rotation in progress. 26888_ Penetrated by Slug. 26888_ Slug penetrates G-67 Veteran. 26888_ Slug penetrates U-05 Engineer. 26888_ U-05 Engineer builds a Wall. 26889_ K-01 Serf cleans the Machine. 26892_ K-01 Serf collects debris. 26892_ K-01 Serf cleans the Machine. 26893_ EXIT=FOUND 26904_ Penetrated by Slug. 26904_ Slug penetrates P-70 Sage. Map ----- +----------------------------------------------------+ | ?????????????????????????????????????????????????? | | ?????????????????????????????????????????????????? | | ?????????????????????????????????????????????????? | | ?????????????????????????????????????????????????? | | ?????????????????????????????????????????????????? | | ?????????????????????????????????????????????????? | | ?????????????????????????????????????????????????? | | ?????????????????????????????????????????????????? | | ?????????????????????????????????????????????????? | | ?????????????????????????????????????????????????? | | ????????##########??? ???????????????????????? | | ????????# #??# #??????????????????????? | | ???# #??# #??????????????????????? | | ???# #??# #??????????????????????? | | ???# #??# #??????????????????????? | | #??# #??# #??????????????????????? | | #??# "" #??# #?????????? ???????????? | | #??# "" " #??# #??????? ????????????? | | #??# """" #??# #????[ ?????????????? | | #### %"""" #### #???[[ ""?????????????? | | #T ##/########;# ###""" "#?????????????? | | % #" "# ?????????? | | % g /g Y ?????????? | | k Y